fUST/lending_fUST_20250611
["ID","MTS","AMOUNT","RATE_DAILY","PERIOD"]
[365316241,1749595842578,-460.0,0.00021917,4]
[365316242,1749595842587,-460.0,0.00021917,4]
[365316243,1749595842596,-460.0,0.00021917,4]
[365316244,1749595842605,-460.0,0.00021917,4]
[365316245,1749595842614,-460.0,0.00021917,4]
[365316246,1749595842623,-311.35606081,0.00021917,4]
[365316247,1749595842634,-460.0,0.00021917,4]
[365316248,1749595842643,-918.85,0.00021917,4]
[365316249,1749595842653,-460.0,0.00021917,4]
[365316250,1749595842662,-460.0,0.00021917,4]
[365316251,1749595842671,-460.0,0.00021917,4]
[365316252,1749595842681,-460.0,0.00021917,4]
[365316253,1749595842691,-460.0,0.00021917,4]
[365316254,1749595842700,-460.0,0.00021917,4]
[365316255,1749595842709,-1916.34,0.00021917,4]
[365316256,1749595842718,-460.0,0.00021917,4]
[365316257,1749595842727,-460.0,0.00021917,4]
[365316258,1749595842737,-460.0,0.00021917,4]
[365316259,1749595842747,-782.51,0.00021917,4]
[365316260,1749595842760,-1382.4,0.00021917,4]
[365316261,1749595842769,-350.0,0.00021917,4]
[365316262,1749595842778,-478.05,0.00021917,4]
[365316263,1749595842788,-460.0,0.00021917,4]
[365316264,1749595842799,-460.0,0.00021917,4]
[365316265,1749595842808,-460.0,0.00021917,4]
[365316266,1749595842818,-460.0,0.00021917,2]
[365316267,1749595842828,-460.0,0.00021917,4]
[365316268,1749595842838,-460.0,0.00021917,4]
[365316269,1749595842847,-118.84365116,0.00021917,4]
[365316270,1749595843063,-341.15634884,0.00021917,4]
[365316271,1749595843072,-500.0,0.00021917,2]
[365316272,1749595843082,-1289.2,0.00021917,4]
[365316273,1749595843091,-1717.68,0.00021917,4]
[365316274,1749595843101,-663.23,0.00021917,4]
[365316275,1749595843110,-460.0,0.00021917,4]
[365316276,1749595843120,-460.0,0.00021917,4]
[365316277,1749595843129,-460.0,0.00021917,4]
[365316278,1749595843140,-823.06,0.00021917,4]
[365316279,1749595843150,-2040.77,0.00021917,4]
[365316280,1749595843159,-491.72,0.00021917,4]
[365316281,1749595843168,-400.0,0.00021917,4]
[365316282,1749595843178,-1428.79,0.00021917,4]
[365316283,1749595843187,-757.53,0.00021917,4]
[365316284,1749595843197,-380.86628721,0.00021917,4]
[365316285,1749595843206,-460.0,0.00021917,4]
[365316286,1749595843215,-460.0,0.00021917,4]
[365316287,1749595843224,-460.0,0.00021917,4]
[365316288,1749595843234,-250.0,0.00021917,4]
[365316289,1749595843243,-1343.45,0.00021917,4]
[365316290,1749595843253,-460.0,0.00021917,4]
[365316291,1749595843263,-744.73,0.00021917,4]
[365316292,1749595843272,-977.91,0.00021917,4]
[365316293,1749595843282,-1685.54,0.00021917,4]
[365316294,1749595843292,-460.0,0.00021917,4]
[365316295,1749595843302,-460.0,0.00021917,4]
[365316296,1749595843311,-626.43,0.00021917,4]
[365316297,1749595843320,-352.27280839,0.00021917,4]
[365316298,1749595843330,-1000.0,0.00021921,2]
[365316299,1749595843339,-1000.0,0.00021921,2]
[365316300,1749595843348,-1200.0,0.00021921,2]
[365316301,1749595843358,-735.66,0.00022,7]
[365316302,1749595843368,-22747.10455556,0.00022,7]
[365316303,1749595843380,-2053.0066299,0.00022,7]
[365316304,1749595843392,-2925.79542973,0.00022,7]
[365316308,1749595843665,-460.0,0.00021095,4]
[365316309,1749595843675,-460.0,0.00021369,4]
[365316311,1749595843684,-15915.095,0.00022,7]
[365316313,1749595843695,-5113.02886269,0.00022,7]
[365316314,1749595843707,-3122.1875981,0.00022,7]
[365316315,1749595843719,-2698.49883721,0.00022,7]
[365316316,1749595843730,-1154.60308681,0.00022,7]
[365316317,1749595843740,-1058.83509815,0.00022003,6]
[365316318,1749595843753,-309.69694293,0.0002205,2]
[365316319,1749595843762,-1058.83509815,0.00022107,6]
[365316320,1749595843772,-500.0,0.00022121,2]
[365316321,1749595843782,-600.0,0.0002216,2]
[365316322,1749595843793,-500.0,0.00022168,2]
[365316323,1749595843803,-460.0,0.00022191,4]
[365316324,1749595843813,-397.18906685,0.00022191,4]
[365316325,1749595843823,-550.0,0.00022191,4]
[365316326,1749595843833,-460.0,0.00022191,4]
[365316327,1749595843843,-460.0,0.00022191,4]
[365316328,1749595843853,-350.0,0.00022191,4]
[365316329,1749595843862,-460.0,0.00022191,4]
[365316330,1749595843872,-360.0,0.00022191,4]
[365316331,1749595843882,-460.0,0.00022191,4]
[365316332,1749595843892,-460.0,0.00022191,4]
[365316333,1749595843902,-460.0,0.00022191,4]
[365316334,1749595843911,-460.0,0.00022191,4]
[365316335,1749595843921,-460.0,0.00022191,4]
[365316336,1749595843930,-460.0,0.00022191,4]
[365316338,1749595843940,-1916.34,0.00022191,4]
[365316340,1749595843949,-486.11,0.00022191,4]
[365316342,1749595843959,-360.0,0.00022191,4]
[365316343,1749595843969,-460.0,0.00022191,4]
[365316344,1749595843979,-1382.4,0.00022191,4]
[365316345,1749595843988,-782.51,0.00022191,4]
[365316346,1749595843997,-478.05,0.00022191,4]
[365316347,1749595844007,-460.0,0.00022191,4]
[365316348,1749595844017,-460.0,0.00022191,4]
[365316349,1749595844027,-460.0,0.00022191,4]
[365316350,1749595844036,-460.0,0.00022191,2]
[365316351,1749595844046,-460.0,0.00022191,4]
[365316352,1749595844055,-460.0,0.00022191,4]
[365316353,1749595844065,-589.1219153,0.00022191,4]
[365316354,1749595844075,-1289.2,0.00022191,4]
[365316355,1749595844085,-1717.68,0.00022191,4]
[365316356,1749595844094,-663.23,0.00022191,4]
[365316357,1749595844103,-460.0,0.00022191,4]
[365316358,1749595844114,-460.0,0.00022191,4]
[365316359,1749595844123,-460.0,0.00022191,4]
[365316360,1749595844133,-823.06,0.00022191,4]
[365316361,1749595844143,-2040.77,0.00022191,4]
[365316362,1749595844152,-491.72,0.00022191,4]
[365316363,1749595844162,-1428.79,0.00022191,4]
[365316364,1749595844172,-757.53,0.00022191,4]
[365316365,1749595844181,-460.0,0.00022191,4]
[365316366,1749595844191,-460.0,0.00022191,4]
[365316367,1749595844201,-460.0,0.00022191,4]
[365316368,1749595844211,-1343.45,0.00022191,4]
[365316369,1749595844220,-460.0,0.00022191,4]
[365316370,1749595844230,-977.91,0.00022191,4]
[365316371,1749595844239,-1685.54,0.00022191,4]
[365316372,1749595844249,-744.73,0.00022191,4]
[365316373,1749595844259,-460.0,0.00022191,4]
[365316374,1749595844268,-460.0,0.00022191,4]
[365316375,1749595844277,-626.43,0.00022191,4]
[365316376,1749595844286,-166.31295545,0.000222,69]
[365316377,1749595844296,-500.0,0.00022206,2]
[365316378,1749595844305,-500.0,0.00022206,2]
[365316379,1749595844314,-500.0,0.00022206,2]
[365316380,1749595844323,-500.0,0.00022206,2]
[365316381,1749595844332,-500.0,0.00022206,2]
[365316382,1749595844342,-1058.83509815,0.0002221,6]
[365316383,1749595844351,-1058.83509815,0.00022314,7]
[365316384,1749595844361,-1058.83509815,0.00022417,7]
[365316385,1749595844370,-340.0,0.00022465,4]
[365316386,1749595844380,-460.0,0.00022465,4]
[365316387,1749595844391,-330.0,0.00022465,4]
[365316388,1749595844400,-460.0,0.00022465,4]
[365316389,1749595844410,-460.0,0.00022465,4]
[365316390,1749595844419,-580.0,0.00022465,4]
[365316391,1749595844429,-460.0,0.00022465,4]
[365316392,1749595844439,-460.0,0.00022465,4]
[365316393,1749595844448,-460.0,0.00022465,4]
[365316394,1749595844458,-400.0,0.00022465,4]
[365316395,1749595844467,-400.0,0.00022465,4]
[365316396,1749595844477,-400.0,0.00022465,4]
[365316397,1749595844486,-400.0,0.00022465,4]
[365316398,1749595844496,-400.0,0.00022465,4]
[365316399,1749595844505,-460.0,0.00022465,4]
[365316400,1749595844515,-400.0,0.00022465,4]
[365316401,1749595844524,-1916.34,0.00022465,4]
[365316402,1749595844535,-460.0,0.00022465,4]
[365316403,1749595844544,-1382.4,0.00022465,4]
[365316404,1749595844554,-782.51,0.00022465,4]
[365316405,1749595844564,-478.05,0.00022465,4]
[365316406,1749595844574,-460.0,0.00022465,4]
[365316407,1749595844586,-460.0,0.00022465,4]
[365316408,1749595844597,-460.0,0.00022465,4]
[365316409,1749595844607,-460.0,0.00022465,2]
[365316410,1749595844616,-460.0,0.00022465,4]
[365316411,1749595844702,-460.0,0.00022465,4]
[365316412,1749595844713,-500.0,0.00022465,2]
[365316413,1749595844722,-1289.2,0.00022465,4]
[365316414,1749595844733,-1717.68,0.00022465,4]
[365316415,1749595844743,-663.23,0.00022465,4]
[365316416,1749595844755,-460.0,0.00022465,4]
[365316417,1749595844770,-460.0,0.00022465,4]
[365316418,1749595844791,-460.0,0.00022465,4]
[365316419,1749595844812,-823.06,0.00022465,4]
[365316420,1749595844831,-2040.77,0.00022465,4]
[365316421,1749595844841,-491.72,0.00022465,4]
[365316422,1749595844851,-1428.79,0.00022465,4]
[365316423,1749595844860,-757.53,0.00022465,4]
[365316424,1749595844870,-460.0,0.00022465,4]
[365316425,1749595844879,-580.0,0.00022465,4]
[365316426,1749595844888,-460.0,0.00022465,4]
[365316427,1749595844898,-1343.45,0.00022465,4]
[365316428,1749595844907,-580.0,0.00022465,4]
[365316429,1749595844918,-977.91,0.00022465,4]
[365316430,1749595844927,-1685.54,0.00022465,4]
[365316431,1749595844937,-744.73,0.00022465,4]
[365316432,1749595844947,-460.0,0.00022465,4]
[365316433,1749595844957,-460.0,0.00022465,4]
[365316434,1749595844966,-626.43,0.00022465,4]
[365316435,1749595844975,-500.0,0.00022468,2]
[365316436,1749595844984,-1500.0,0.00022468,2]
[365316437,1749595844994,-1800.0,0.00022468,2]
[365316438,1749595845003,-47779.85,0.000225,2]
[365316439,1749595845012,-1058.83509815,0.00022521,7]
[365316440,1749595845022,-418.86173857,0.00022557,2]
[365316441,1749595845031,-2742.71,0.00022599,2]
[365316442,1749595845040,-1058.83509815,0.00022624,7]
[365316443,1749595845050,-3162.0,0.00022686,2]
[365316444,1749595845059,-500.0,0.00022716,2]
[365316445,1749595845068,-1058.83509815,0.00022728,7]
[365316446,1749595845078,-160.0,0.00022731,2]
[365316447,1749595845088,-424.12530924,0.00022731,2]
[365316448,1749595845097,-842.5625,0.00022731,2]
[365316449,1749595845106,-160.0,0.00022731,2]
[365316450,1749595845116,-229.6792923,0.00022731,2]
[365316451,1749595845125,-160.0,0.00022731,2]
[365316452,1749595845136,-160.0,0.00022731,2]
[365316453,1749595845146,-160.0,0.00022731,2]
[365316454,1749595845156,-834.9046531,0.00022731,2]
[365316455,1749595845166,-320.0,0.00022739,4]
[365316456,1749595845175,-460.0,0.00022739,4]
[365316457,1749595845186,-460.0,0.00022739,4]
[365316458,1749595845195,-319.52,0.00022739,4]
[365316459,1749595845205,-580.0,0.00022739,4]
[365316460,1749595845215,-460.0,0.00022739,4]
[365316461,1749595845224,-460.0,0.00022739,4]
[365316462,1749595845234,-400.0,0.00022739,4]
[365316463,1749595845243,-1916.34,0.00022739,4]
[365316464,1749595845253,-460.0,0.00022739,4]
[365316465,1749595845262,-1382.4,0.00022739,4]
[365316466,1749595845272,-782.51,0.00022739,4]
[365316467,1749595845281,-478.05,0.00022739,4]
[365316468,1749595845291,-460.0,0.00022739,4]
[365316469,1749595845301,-460.0,0.00022739,4]
[365316470,1749595845310,-460.0,0.00022739,4]
[365316471,1749595845320,-460.0,0.00022739,2]
[365316472,1749595845328,-460.0,0.00022739,4]
[365316473,1749595845338,-460.0,0.00022739,4]
[365316474,1749595845347,-1289.2,0.00022739,4]
[365316475,1749595845356,-1717.68,0.00022739,4]
[365316476,1749595845366,-663.23,0.00022739,4]
[365316477,1749595845375,-460.0,0.00022739,4]
[365316478,1749595845386,-460.0,0.00022739,4]
[365316479,1749595845396,-460.0,0.00022739,4]
[365316480,1749595845405,-823.06,0.00022739,4]
[365316481,1749595845415,-2040.77,0.00022739,4]
[365316482,1749595845425,-491.72,0.00022739,4]
[365316483,1749595845435,-1428.79,0.00022739,4]
[365316484,1749595845445,-757.53,0.00022739,4]
[365316485,1749595845455,-460.0,0.00022739,4]
[365316486,1749595845464,-580.0,0.00022739,4]
[365316487,1749595845474,-1343.45,0.00022739,4]
[365316488,1749595845484,-977.91,0.00022739,4]
[365316489,1749595845494,-1685.54,0.00022739,4]
[365316490,1749595845503,-744.73,0.00022739,4]
[365316491,1749595845513,-460.0,0.00022739,4]
[365316492,1749595845523,-460.0,0.00022739,4]
[365316493,1749595845532,-626.43,0.00022739,4]
[365316494,1749595845541,-1000.0,0.00022754,2]
[365316495,1749595845551,-1001.49859335,0.00022754,2]
[365316496,1749595845561,-1000.0,0.00022754,2]
[365316497,1749595845571,-1000.0,0.00022754,2]
[365316498,1749595845580,-1058.83509815,0.00022831,8]
[365316499,1749595845590,-1583.96,0.000229,7]
[365316500,1749595845599,-420.0,0.0002292,2]
[365316501,1749595845609,-420.0,0.0002292,2]
[365316502,1749595845619,-1058.83509815,0.00022934,8]
[365316503,1749595845629,-6661.50502107,0.00022968,2]
[365316504,1749595845640,-364.9974737,0.00022986,2]
[365316505,1749595845650,-560.0,0.00023013,4]
[365316506,1749595845660,-460.0,0.00023013,4]
[365316507,1749595845670,-460.0,0.00023013,4]
[365316508,1749595845680,-460.0,0.00023013,4]
[365316509,1749595845690,-400.0,0.00023013,4]
[365316510,1749595845700,-1916.34,0.00023013,4]
[365316511,1749595845710,-460.0,0.00023013,4]
[365316512,1749595845721,-1382.4,0.00023013,4]
[365316513,1749595845730,-782.51,0.00023013,4]
[365316514,1749595845739,-478.05,0.00023013,4]
[365316515,1749595845751,-320.0,0.00023013,4]
[365316516,1749595845762,-460.0,0.00023013,4]
[365316517,1749595845772,-460.0,0.00023013,4]
[365316518,1749595845782,-460.0,0.00023013,2]
[365316519,1749595845793,-242.44983886,0.00023013,4]
[365316520,1749595845804,-460.0,0.00023013,4]
[365316521,1749595845813,-468.93822417,0.00023013,2]
[365316522,1749595845823,-1289.2,0.00023013,4]
[365316523,1749595845834,-1717.68,0.00023013,4]
[365316524,1749595845844,-663.23,0.00023013,4]
[365316525,1749595845855,-460.0,0.00023013,4]
[365316526,1749595845865,-460.0,0.00023013,4]
[365316527,1749595845875,-560.0,0.00023013,4]
[365316528,1749595845886,-823.06,0.00023013,4]
[365316529,1749595845896,-2040.77,0.00023013,4]
[365316530,1749595845906,-491.72,0.00023013,4]
[365316531,1749595845916,-1428.79,0.00023013,4]
[365316532,1749595845926,-757.53,0.00023013,4]
[365316533,1749595845936,-320.0,0.00023013,4]
[365316534,1749595845945,-1343.45,0.00023013,4]
[365316535,1749595845955,-977.91,0.00023013,4]
[365316536,1749595845965,-744.73,0.00023013,4]
[365316537,1749595845974,-1685.54,0.00023013,4]
[365316538,1749595845983,-580.0,0.00023013,4]
[365316539,1749595845993,-460.0,0.00023013,4]
[365316540,1749595846002,-626.43,0.00023013,4]
[365316541,1749595846012,-2000.0,0.00023016,2]
[365316542,1749595846022,-2400.0,0.00023016,2]
[365316543,1749595846032,-245.0,0.00023027,2]
[365316544,1749595846041,-1058.83509815,0.00023038,8]
[365316545,1749595846051,-1058.83509815,0.00023141,8]
[365316546,1749595846060,-735.66,0.000232,7]
[365316547,1749595846070,-55729.32,0.000232,7]
[365316548,1749595846080,-1058.83509815,0.00023245,8]
[365316549,1749595846090,-600.0,0.00023256,2]
[365316550,1749595846100,-440.0,0.00023287,4]
[365316551,1749595846110,-460.0,0.00023287,4]
[365316552,1749595846120,-460.0,0.00023287,4]
[365316553,1749595846130,-400.0,0.00023287,4]
[365316554,1749595846140,-1916.34,0.00023287,4]
[365316555,1749595846150,-460.0,0.00023287,4]
[365316556,1749595846160,-1382.4,0.00023287,4]
[365316557,1749595846169,-782.51,0.00023287,4]
[365316558,1749595846179,-478.05,0.00023287,4]
[365316559,1749595846189,-247.46,0.00023287,4]
[365316560,1749595846199,-460.0,0.00023287,4]
[365316561,1749595846208,-460.0,0.00023287,2]
[365316562,1749595846217,-460.0,0.00023287,4]
[365316563,1749595846227,-1289.2,0.00023287,4]
[365316565,1749595846237,-1717.68,0.00023287,4]
[365316566,1749595846247,-663.23,0.00023287,4]
[365316567,1749595846257,-460.0,0.00023287,4]
[365316568,1749595846268,-460.0,0.00023287,4]
[365316569,1749595846278,-823.06,0.00023287,4]
[365316576,1749595846363,-2040.77,0.00023287,4]
[365316577,1749595846374,-491.72,0.00023287,4]
[365316578,1749595846384,-1428.79,0.00023287,4]
[365316579,1749595846394,-757.53,0.00023287,4]
[365316580,1749595846403,-1343.45,0.00023287,4]
[365316581,1749595846413,-977.91,0.00023287,4]
[365316583,1749595846423,-744.73,0.00023287,4]
[365316585,1749595846432,-1685.54,0.00023287,4]
[365316587,1749595846442,-460.0,0.00023287,4]
[365316589,1749595846451,-626.43,0.00023287,4]
[365316591,1749595846460,-1500.0,0.00023302,2]
[365316593,1749595846470,-1500.0,0.00023302,2]
[365316595,1749595846479,-1500.0,0.00023302,2]
[365316597,1749595846489,-1058.83509815,0.00023348,9]
[365316599,1749595846498,-21219.15788056,0.000234,7]
[365316601,1749595846508,-21219.15788056,0.000234,7]
[365316603,1749595846517,-1058.83509815,0.00023452,9]
[365316605,1749595846526,-3428.39,0.00023541,2]
[365316607,1749595846536,-1058.83509815,0.00023555,9]
[365316609,1749595846545,-460.0,0.00023561,4]
[365316611,1749595846555,-460.0,0.00023561,4]
[365316613,1749595846565,-400.0,0.00023561,4]
[365316615,1749595846575,-1916.34,0.00023561,4]
[365316617,1749595846584,-460.0,0.00023561,4]
[365316619,1749595846594,-1382.4,0.00023561,4]
[365316621,1749595846604,-782.51,0.00023561,4]
[365316623,1749595846613,-478.05,0.00023561,4]
[365316625,1749595846623,-460.0,0.00023561,4]
[365316627,1749595846632,-460.0,0.00023561,2]
[365316629,1749595846642,-460.0,0.00023561,4]
[365316631,1749595846652,-1289.2,0.00023561,4]
[365316633,1749595846662,-1717.68,0.00023561,4]
[365316635,1749595846671,-663.23,0.00023561,4]
[365316637,1749595846681,-460.0,0.00023561,4]
[365316639,1749595846690,-460.0,0.00023561,4]
[365316641,1749595846700,-823.06,0.00023561,4]
[365316643,1749595846710,-2040.77,0.00023561,4]
[365316645,1749595846719,-491.72,0.00023561,4]
[365316647,1749595846729,-1428.79,0.00023561,4]
[365316649,1749595846739,-757.53,0.00023561,4]
[365316651,1749595846749,-1343.45,0.00023561,4]
[365316653,1749595846763,-977.91,0.00023561,4]
[365316655,1749595846773,-744.73,0.00023561,4]
[365316656,1749595846782,-1685.54,0.00023561,4]
[365316657,1749595846792,-460.0,0.00023561,4]
[365316658,1749595846802,-626.43,0.00023561,4]
[365316659,1749595846812,-2000.0,0.00023564,2]
[365316660,1749595846822,-3000.0,0.00023564,2]
[365316661,1749595846832,-151.0,0.00023597,7]
[365316662,1749595846841,-151.0,0.00023597,7]
[365316663,1749595846850,-151.0,0.00023597,7]
[365316664,1749595846860,-151.0,0.000236,6]
[365316665,1749595846870,-151.0,0.00023633,2]
[365316666,1749595846880,-5000.0,0.00023633,2]
[365316667,1749595846890,-160.02203713,0.00023633,2]
[365316668,1749595846899,-1688.0,0.00023633,2]
[365316669,1749595846909,-1500.0,0.00023633,2]
[365316670,1749595846918,-1500.0,0.00023633,2]
[365316671,1749595846927,-1500.0,0.00023633,2]
[365316672,1749595846937,-1500.0,0.00023633,2]
[365316673,1749595846946,-2500.0,0.00023633,2]
[365316674,1749595846958,-1500.0,0.00023633,2]
[365316675,1749595846967,-2500.0,0.00023633,2]
[365316676,1749595846977,-1500.0,0.00023633,2]
[365316678,1749595846986,-1500.0,0.00023633,2]
[365316680,1749595846995,-2500.0,0.00023633,2]
[365316682,1749595847005,-1500.0,0.00023633,2]
[365316684,1749595847014,-2323.54423715,0.00023633,2]
[365316686,1749595847023,-431.86117909,0.00023633,2]
[365316688,1749595847033,-1317.3030559,0.00023633,2]
[365316690,1749595847042,-207.4,0.00023633,2]
[365316692,1749595847051,-151.0,0.00023633,7]
[365316694,1749595847064,-1058.83509815,0.00023659,9]
[365316696,1749595847073,-47779.85,0.000237,2]
[365316698,1749595847082,-1058.83509815,0.00023762,9]
[365316699,1749595847092,-151.0,0.000238,7]
[365316700,1749595847101,-151.0,0.000238,7]
[365316701,1749595847111,-151.0,0.000238,7]
[365316702,1749595847120,-151.0,0.00023835,7]
[365316703,1749595847130,-151.0,0.00023835,7]
[365316704,1749595847140,-151.0,0.00023835,7]
[365316705,1749595847149,-460.0,0.00023835,4]
[365316706,1749595847159,-460.0,0.00023835,4]
[365316707,1749595847169,-400.0,0.00023835,4]
[365316709,1749595847178,-1916.34,0.00023835,4]
[365316710,1749595847188,-460.0,0.00023835,4]
[365316712,1749595847197,-1382.4,0.00023835,4]
[365316714,1749595847206,-782.51,0.00023835,4]
[365316715,1749595847216,-478.05,0.00023835,4]
[365316716,1749595847225,-460.0,0.00023835,4]
[365316717,1749595847235,-460.0,0.00023835,2]
[365316718,1749595847244,-373.92,0.00023835,4]
[365316719,1749595847254,-1289.2,0.00023835,4]
[365316720,1749595847263,-1717.68,0.00023835,4]
[365316721,1749595847273,-663.23,0.00023835,4]
[365316722,1749595847283,-460.0,0.00023835,4]
[365316723,1749595847292,-460.0,0.00023835,4]
[365316724,1749595847301,-823.06,0.00023835,4]
[365316725,1749595847311,-2040.77,0.00023835,4]
[365316726,1749595847320,-491.72,0.00023835,4]
[365316727,1749595847330,-1428.79,0.00023835,4]
[365316728,1749595847340,-757.53,0.00023835,4]
[365316729,1749595847349,-1343.45,0.00023835,4]
[365316730,1749595847359,-977.91,0.00023835,4]
[365316731,1749595847368,-744.73,0.00023835,4]
[365316732,1749595847377,-1685.54,0.00023835,4]
[365316733,1749595847387,-460.0,0.00023835,4]
[365316734,1749595847396,-626.43,0.00023835,4]
[365316735,1749595847406,-2000.0,0.0002385,2]
[365316736,1749595847415,-1491.71526404,0.0002385,2]
[365316737,1749595847425,-1058.83509815,0.00023866,10]
[365316738,1749595847434,-3162.0,0.00023919,2]
[365316739,1749595847443,-364.9974737,0.00023945,2]
[365316740,1749595847453,-439.0150147,0.00023966,2]
[365316741,1749595847462,-1058.83509815,0.00023969,10]
[365316742,1749595847472,-364.4406513,0.00023973,2]
[365316743,1749595847481,-229.6792923,0.00024,7]
[365316744,1749595847490,-160.0,0.00024,7]
[365316745,1749595847499,-151.0,0.00024,9]
[365316746,1749595847509,-424.12530924,0.00024,7]
[365316747,1749595847518,-834.9046531,0.00024,7]
[365316748,1749595847528,-158.29,0.00024,2]
[365316749,1749595847537,-159.54866634,0.00024027,2]
[365316750,1749595847548,-5000.0,0.0002404,3]
[365316751,1749595847557,-1058.83509815,0.00024072,10]
[365316752,1749595847567,-1583.96,0.000241,7]
[365316753,1749595847576,-460.0,0.00024109,4]
[365316754,1749595847585,-460.0,0.00024109,4]
[365316755,1749595847595,-400.0,0.00024109,4]
[365316756,1749595847605,-1916.34,0.00024109,4]
[365316757,1749595847615,-460.0,0.00024109,4]
[365316758,1749595847624,-782.51,0.00024109,4]
[365316759,1749595847634,-1382.4,0.00024109,4]
[365316760,1749595847644,-478.05,0.00024109,4]
[365316761,1749595847654,-460.0,0.00024109,4]
[365316762,1749595847664,-460.0,0.00024109,2]
[365316763,1749595847673,-1289.2,0.00024109,4]
[365316764,1749595847683,-1717.68,0.00024109,4]
[365316765,1749595847692,-663.23,0.00024109,4]
[365316766,1749595847702,-460.0,0.00024109,4]
[365316767,1749595847712,-460.0,0.00024109,4]
[365316768,1749595847721,-823.06,0.00024109,4]
[365316769,1749595847731,-2040.77,0.00024109,4]
[365316770,1749595847741,-491.72,0.00024109,4]
[365316771,1749595847752,-1428.79,0.00024109,4]
[365316772,1749595847836,-757.53,0.00024109,4]
[365316773,1749595847846,-1343.45,0.00024109,4]
[365316774,1749595847856,-977.91,0.00024109,4]
[365316775,1749595847866,-744.73,0.00024109,4]
[365316776,1749595847875,-1685.54,0.00024109,4]
[365316777,1749595847885,-460.0,0.00024109,4]
[365316778,1749595847895,-626.43,0.00024109,4]
[365316779,1749595847905,-573.126752,0.0002411,2]
[365316780,1749595847915,-158.6873432,0.0002411,2]
[365316781,1749595847924,-573.3540349,0.0002411,2]
[365316782,1749595847933,-158.7504224,0.0002411,2]
[365316783,1749595847943,-176.8341807,0.0002411,2]
[365316784,1749595847952,-176.8341807,0.0002411,2]
[365316785,1749595847962,-158.7504224,0.0002411,2]
[365316786,1749595847972,-153.0,0.0002411,2]
[365316787,1749595847981,-573.3540349,0.0002411,2]
[365316788,1749595847990,-153.0,0.0002411,2]
[365316789,1749595848000,-158.7504224,0.0002411,2]
[365316790,1749595848009,-573.3540349,0.0002411,2]
[365316791,1749595848019,-176.8341807,0.0002411,2]
[365316792,1749595848029,-153.0,0.0002411,2]
[365316793,1749595848039,-176.8341807,0.0002411,2]
[365316794,1749595848049,-158.7504224,0.0002411,2]
[365316795,1749595848059,-153.0,0.0002411,2]
[365316796,1749595848070,-573.3540349,0.0002411,2]
[365316797,1749595848080,-176.8341807,0.0002411,2]
[365316798,1749595848090,-158.7504224,0.0002411,2]
[365316799,1749595848100,-573.3540349,0.0002411,2]
[365316800,1749595848110,-153.0,0.0002411,2]
[365316801,1749595848119,-573.3540349,0.0002411,2]
[365316802,1749595848129,-153.0,0.0002411,2]
[365316803,1749595848140,-176.8341807,0.0002411,2]
[365316804,1749595848149,-158.7504224,0.0002411,2]
[365316805,1749595848158,-1146.4807869,0.0002411,2]
[365316806,1749595848168,-317.4377656,0.0002411,2]